Cogmind - Beta 13 *** ADVENTURER MODE // 2024.05.26 @ 21:07:39 Player: Blade Result: Destroyed by G-47 Trooper with Particle Gun Performance ------------- Evolutions (2) 1000 Regions Visited (5) 1000 Robots Destroyed (62) 310 Value Destroyed (1806) 1806 Prototype IDs (2) 40 Alien Tech Used (0) 0 Bonus (180) 180 TOTAL SCORE: 4336 Bonus ------- High Alert Combat Kills 99 Follower Combat Kills 81 Cogmind --------- Core Integrity 0/550 Matter 67/300 Energy 100/100 System Corruption 3% Temperature Cool (9) Movement Core (50) Location -8/Storage Parts ------- > --- POWER (1) -------- (None) > --- PROPULSION (2) --- (None) > --- UTILITY (6) ------ Signal Interpreter Improved Signal Interpreter Improved Terrain Scan Processor Targeting Computer Hacking Suite > --- WEAPON (2) ------- Enhanced Autogun > --- INVENTORY (5) ---- Light Ion Engine Light Ion Engine Aluminum Leg Carbon-fiber Leg Small Laser Peak State ------------ > --- POWER ------------ Cold Fusion Reactor > --- PROPULSION ------- Light Treads Light Treads > --- UTILITY ---------- Small Storage Unit Signal Interpreter Improved Signal Interpreter Improved Terrain Scan Processor Targeting Computer Hacking Suite > --- WEAPON ----------- Heavy Assault Rifle Mini Grenade Launcher > --- INVENTORY -------- Light Ion Engine Light Ion Engine Aluminum Leg Carbon-fiber Leg Small Laser Heavy Assault Rifle [Rating: 24] Favorites ----------- Power Light Nuclear Core Engine Light Angular Momentum Engine Power Core Light Nuclear Core Reactor Cold Fusion Reactor Propulsion Aluminum Leg Treads Light Treads Leg Aluminum Leg Utility Small Storage Unit Device Improved Sensor Array Storage Small Storage Unit Processor Targeting Computer Hackware Hacking Suite Protection Light Armor Plating Weapon Shotgun Ballistic Gun Shotgun Launcher Mini Grenade Launcher Build | -11 -10 -9 -9 -8 -8 ------- Run | Yrd Mat Mat Min Mat Sto Slots Evolved 4 | . . 2 . 2 . Power . | . . . . . . Propulsion . | . . . . . . Utility 4 | . . 2 . 2 . Weapon . | . . . . . . Parts Attached 33 | . 5 6 1 5 16 Power 4 | . 2 . . . 2 Engine 2 | . 1 . . . 1 Core 1 | . 1 . . . . Reactor 1 | . . . . . 1 Propulsion 7 | . . . . 3 4 Treads 2 | . . . . . 2 Leg 5 | . . . . 3 2 Wheel . | . . . . . . Hover . | . . . . . . Flight . | . . . . . . Utility 11 | . 1 4 . 2 4 Device 3 | . . 1 . 1 1 Storage . | . . . . . . Processor 5 | . 1 2 . . 2 Hackware 1 | . . . . . 1 Protection 2 | . . 1 . 1 . Artifact . | . . . . . . Weapon 11 | . 2 2 1 . 6 Energy Gun . | . . . . . . Energy Cannon . | . . . . . . Ballistic Gun 8 | . 2 2 . . 4 Ballistic Cannon . | . . . . . . Launcher 3 | . . . 1 . 2 Special Weapon . | . . . . . . Impact Weapon . | . . . . . . Slashing Weapon . | . . . . . . Piercing Weapon . | . . . . . . Special Melee Weapon . | . . . . . . Unidentified Prototypes 2 | . . . . . 2 Parts Lost 13 | . . 1 . 2 10 Power 1 | . . . . 1 . Propulsion 5 | . . . . 1 4 Utility 5 | . . 1 . . 4 Weapon 2 | . . . . . 2 Highest Loss Streak 4 | . . 1 . 1 4 To Critical Strikes . | . . . . . . Average Slot Usage (%) 93 | . 93 98 100 95 84 Engine 2 | . 7 . . . 4 Core 6 | . 6 11 11 8 . Treads 1 | . . . . . 6 Leg 19 | . 28 22 22 17 7 Device 2 | . . 4 . 7 1 Storage 10 | . 14 11 11 9 8 Processor 19 | . 7 22 22 18 30 Protection 5 | . . 5 11 16 4 Ballistic Gun 17 | . 28 21 11 9 10 Launcher 3 | . . . 10 9 5 Naked Turns . | . . . . . . Heaviest Build 24 | 13 16 19 19 21 24 Greatest Support 40 | 20 20 20 20 25 40 Greatest Overweight (x) 7 | . . . . 2 7 Average Overweight (x) . | . . . . . . Largest Inventory Capacity 8 | 8 8 8 8 8 8 Average Capacity 7 | 8 8 8 8 8 7 Most Carried 8 | 6 8 7 6 8 8 Average Carried 6 | 6 6 5 6 6 6 Final Capacity 8 | 8 8 8 8 8 5 Final Carried 8 | 6 8 6 6 8 5 Class Distribution -------------------- 76% | Mutant 13% | Scavenger-Mutant 9% | Hacker-Mutant Dominant Class ---------------- Mutant | -10/Materials Mutant | -9/Materials Mutant | -9/Mines Mutant | -8/Materials Hacker-Mutant | -8/Storage Resources | -11 -10 -9 -9 -8 -8 ----------- Run | Yrd Mat Mat Min Mat Sto Matter Collected 1179 | 200 229 263 42 162 283 Remotely . | . . . . . . Salvage Created 2335 | . 555 554 . 166 1060 Parts 119 | . 22 32 . 9 56 Haulers Intercepted 3 | . 1 1 . . 1 Recyclers Shooed 2 | . 2 . . . . Parts Field Recycled . | . . . . . . Retrieved Matter . | . . . . . . Parts Self-Destructed . | . . . . . . Prevented . | . . . . . . Kills | -11 -10 -9 -9 -8 -8 ------- Run | Yrd Mat Mat Min Mat Sto Combat Hostiles Destroyed 46 | . 5 17 . 4 20 Guns 39 | . 5 17 . 4 13 AOE 7 | . . . . . 7 Classes Destroyed 8 | . 5 1 . . 2 Hauler 3 | . 1 1 . . 1 Recycler 7 | . 4 . . 1 2 Operator 1 | . . . . . 1 Watcher 5 | . 3 . . . 2 Swarmer 12 | . 3 7 . 2 . Grunt 22 | . 2 5 . 1 14 Duelist 1 | . . . . . 1 Sentry 11 | . . 5 . 1 5 Best Kill Streak 9 | . 3 9 . 4 8 Combat Bots Only 9 | . 3 9 . 3 4 Max Kills in Single Turn 3 | . 1 2 . 1 3 Gunslinging 1 | . . 1 . . . Exploded 2 | . . . . . 2 Melee . | . . . . . . Uniques/NPCs Destroyed . | . . . . . . Combat | -11 -10 -9 -9 -8 -8 -------- Run | Yrd Mat Mat Min Mat Sto Hostile Shots Fired 317 | . 15 67 . 30 205 Missed 108 | . 2 30 . 7 69 Damage Taken 2360 | . 109 311 . 274 1666 Core 647 | . 32 54 . 28 533 Absorbed by Shields . | . . . . . . Ignored by Resistances 685 | . 36 97 . 76 476 Core Remaining (%) 91 | 100 87 . 86 . . Volleys Fired 151 | . 42 27 . 24 58 Largest 2 | . 2 2 . 2 2 Hottest 53 | . 46 46 . 53 53 Shots Fired 266 | . 84 54 . 29 99 Gun 245 | . 84 54 . 24 83 Cannon . | . . . . . . Launcher 21 | . . . . 5 16 Special . | . . . . . . Kinetic 245 | . 84 54 . 24 83 Thermal . | . . . . . . Explosive 21 | . . . . 5 16 Electromagnetic . | . . . . . . Robot Hit Streak 33 | . 19 33 . 26 29 Robot Miss Streak 4 | . 4 2 . . 2 Penetration Max . | . . . . . . Secondary Targets 6 | . . 3 . . 3 Max Gunslinging Chain 1 | . . 1 . . 1 Shots Hit Robots 203 | . 59 42 . 24 78 Core Hits 120 | . 26 30 . 9 55 Critical Kills 1 | . 1 . . . . Critical Parts Destroyed 2 | . . 1 . . 1 Critical Strikes 3 | . 1 1 . . 1 Destroy 3 | . 1 1 . . 1 Melee Attacks . | . . . . . . Impact . | . . . . . . Slashing . | . . . . . . Piercing . | . . . . . . Sneak Attacks . | . . . . . . Combat Hostiles . | . . . . . . Follow-up Attacks . | . . . . . . Damage Inflicted 4173 | . 679 793 10 467 2224 Guns 2837 | . 662 786 . 339 1050 Cannons . | . . . . . . Explosions 1289 | . . . . 128 1161 Melee . | . . . . . . Ramming 47 | . 17 7 10 . 13 Kinetic 2837 | . 662 786 . 339 1050 Thermal . | . . . . . . Explosive 1289 | . . . . 128 1161 Electromagnetic . | . . . . . . Impact . | . . . . . . Slashing . | . . . . . . Piercing . | . . . . . . Highest Corruption 3 | . . 1 1 . 3 Average Corruption 1 | . . 1 1 . 3 Corruption Purged . | . . . . . . Corruption Blocked . | . . . . . . Effects 5 | . . 3 1 . 1 Message Errors 1 | . . 1 . . . Matter Fused 2 | . . 1 . . 1 Heat Flow Errors 1 | . . 1 . . . Data Loss (minor) 1 | . . . 1 . . Overload Shots . | . . . . . . Overflow Damage 42 | . . . . 17 25 Projectiles . | . . . . . . Explosions 42 | . . . . 17 25 Melee . | . . . . . . Knockbacks . | . . . . . . Impact . | . . . . . . Kinetic . | . . . . . . Secondary . | . . . . . . Self-Inflicted Damage 72 | . . . . 15 57 Shots 3 | . . . . 1 2 Rammed 2 | . . . . . 2 Targets Rammed 11 | . 4 3 1 . 3 Kicked 9 | . 4 3 1 . 1 Crushed . | . . . . . . Highest Temperature 112 | . 18 112 . 45 29 Average Temperature 16 | . 7 24 . 21 9 Received Heat Transfer 1500 | . 51 162 . 135 1152 Siege Activations . | . . . . . . Robots Corrupted . | . . . . . . Combat Hostiles . | . . . . . . Parts Fried . | . . . . . . Impact Corruptions . | . . . . . . Robots Melted . | . . . . . . Combat Hostiles . | . . . . . . Parts Melted . | . . . . . . Heat Transferred . | . . . . . . Parts Sabotaged . | . . . . . . Parts Stolen . | . . . . . . Parts Stripped . | . . . . . . Power Chain Reactions . | . . . . . . Alert | -11 -10 -9 -9 -8 -8 ------- Run | Yrd Mat Mat Min Mat Sto Peak Influence 566 | . 157 384 115 231 566 Initial 100 | . . 27 100 37 82 Average 176 | . 51 167 102 104 380 Maximum Alert Level 2 | . . 1 . 1 2 Low Security (%) 65 | 100 100 48 100 95 16 Level 1 21 | . . 51 . 4 31 Level 2 13 | . . . . . 51 Level 3 . | . . . . . . Level 4 . | . . . . . . Level 5 . | . . . . . . High Security . | . . . . . . Max Security . | . . . . . . Squads Dispatched 11 | . . 3 . 1 7 Investigation 1 | . . . . . 1 Extermination . | . . . . . . Reinforcement 7 | . . 3 . 1 3 Assault . | . . . . . . Garrison 3 | . . . . . 3 Intercept . | . . . . . . Searches Triggered . | . . . . . . Construction Impeded 1 | . . . . . 1 Haulers Reinforced . | . . . . . . Active Scanning Responses . | . . . . . . Cargo Convoy Interrupts . | . . . . . . Stealth | -11 -10 -9 -9 -8 -8 --------- Run | Yrd Mat Mat Min Mat Sto Distress Signals 7 | . 1 1 3 . 2 Communications Jammed . | . . . . . . Distress Signals . | . . . . . . Times Spotted 73 | . 10 24 1 6 32 Peak Tracking Total 9 | . 4 9 1 3 7 Tactical Retreats 4 | . 1 . 1 . 2 Traps | -11 -10 -9 -9 -8 -8 ------- Run | Yrd Mat Mat Min Mat Sto Traps Triggered 1 | . . 1 . . . Indirectly . | . . . . . . Trap Hack Attempts . | . . . . . . Triggered . | . . . . . . Disarmed . | . . . . . . Reprogrammed . | . . . . . . Reused . | . . . . . . Traps Extracted . | . . . . . . Installed . | . . . . . . Triggered . | . . . . . . Machines | -11 -10 -9 -9 -8 -8 ---------- Run | Yrd Mat Mat Min Mat Sto Machines Disabled 2 | . . . . . 2 Max in Single Turn 2 | . . . . . 2 Machines Repaired . | . . . . . . Machines Dismantled . | . . . . . . Machines Sabotaged . | . . . . . . Overloaded Fab Kills . | . . . . . . Hacking | -11 -10 -9 -9 -8 -8 --------- Run | Yrd Mat Mat Min Mat Sto Machines Accessed 8 | . 2 3 . 1 2 Terminals 8 | . 2 3 . 1 2 Fabricators . | . . . . . . Repair Stations . | . . . . . . Recycling Units . | . . . . . . Scanalyzers . | . . . . . . Garrison Access . | . . . . . . Total Hacks 17 | . 8 3 . 2 4 Successful 5 | . 3 . . . 2 Failed 12 | . 5 3 . 2 2 Catastrophic 4 | . . 3 . 1 . Database Lockouts . | . . . . . . Manual 12 | . 9 3 . . . Terminals 17 | . 8 3 . 2 4 Fabricators . | . . . . . . Repair Stations . | . . . . . . Recycling Units . | . . . . . . Scanalyzers . | . . . . . . Garrison Access . | . . . . . . Terminal Hacks 5 | . 3 . . . 2 Robot Analysis 1 | . 1 . . . . Open Door 1 | . . . . . 1 Terminal Index 1 | . 1 . . . . Recycling Unit Index 1 | . 1 . . . . Alert Level 1 | . . . . . 1 Fabricator Hacks . | . . . . . . Repair Station Hacks . | . . . . . . Recycling Unit Hacks . | . . . . . . Scanalyzer . | . . . . . . Garrison Access Hacks . | . . . . . . Unauthorized Hacks . | . . . . . . Terminals . | . . . . . . Fabricators . | . . . . . . Repair Stations . | . . . . . . Recycling Units . | . . . . . . Scanalyzers . | . . . . . . Garrison Access . | . . . . . . Data Cores Recovered . | . . . . . . Used . | . . . . . . Hacking Detections 8 | . 2 3 . 1 2 Full Trace Events 1 | . . . . . 1 Feedback Events . | . . . . . . Feedback Blocked . | . . . . . . Robot Schematics Acquired . | . . . . . . Robots Built . | . . . . . . Authchips . | . . . . . . Time . | . . . . . . Total Robot Build Rating . | . . . . . . Part Schematics Acquired . | . . . . . . Parts Built . | . . . . . . Authchips . | . . . . . . Time . | . . . . . . Total Part Build Rating . | . . . . . . Parts Repaired . | . . . . . . Time . | . . . . . . Parts Recycled . | . . . . . . Recycled Matter . | . . . . . . Retrieved Matter . | . . . . . . Retrieved Components . | . . . . . . Parts Scanalyzed . | . . . . . . Part Schematics Acquired . | . . . . . . Parts Damaged . | . . . . . . Bothacking | -11 -10 -9 -9 -8 -8 ------------ Run | Yrd Mat Mat Min Mat Sto Used RIF Installer . | . . . . . . Robots Hacked . | . . . . . . Non-combat . | . . . . . . Combat . | . . . . . . Robot Hacks Applied . | . . . . . . Relay Couplers Released . | . . . . . . Fabnet Peak Effective % . | . . . . . . Robots Rewired . | . . . . . . Allies Hacked . | . . . . . . Hacks Repelled . | . . . . . . Allies | -11 -10 -9 -9 -8 -8 -------- Run | Yrd Mat Mat Min Mat Sto Total Allies 2 | . . . 2 . . Largest Group 2 | . . . 2 1 . Highest-Rated Group 44 | . . . 44 31 . Highest-Rated Ally 31 | . . . 31 31 . Total Orders . | . . . . . . Ally Attacks 13 | . . . 3 10 . Total Damage 128 | . . . 41 87 . Kills 3 | . . . 1 2 . Allies Corrupted . | . . . . . . Allies Melted . | . . . . . . Intel | -11 -10 -9 -9 -8 -8 ------- Run | Yrd Mat Mat Min Mat Sto Robot Analysis Total 1 | . 1 . . . . Derelict Logs Recovered 1 | . . . 1 . . Drone Launches . | . . . . . . Drone Recoveries . | . . . . . . Exploration | -11 -10 -9 -9 -8 -8 ------------- Run | Yrd Mat Mat Min Mat Sto Turns Passed 2214 | 2 551 552 263 288 558 Spaces Moved 1189 | 2 338 288 166 135 260 Core 40 | . . . . . 40 Treads 93 | . . . . . 93 Legs 1056 | 2 338 288 166 135 127 Wheels . | . . . . . . Hover . | . . . . . . Flight . | . . . . . . Fastest Speed 50 | 120 120 120 120 120 50 Average Speed 127 | 120 120 120 120 168 128 Slowest Speed 400 | 120 120 120 120 260 400 Overloaded Moves . | . . . . . . Propulsion Burnouts . | . . . . . . Robots Hopped . | . . . . . . Cave-ins Triggered . | . . . . . . Exploration Rate (%) 30 | 2 38 33 33 22 52 Regions Visited 5 Branch Regions 2 Pre-discovered Areas 1 | . . . 1 . . Known Exits Taken 3 | . . 1 1 1 . Unknown Exits Taken 2 | 1 1 . . . . Scrap Searched . | . . . . . . Spaces Dug . | . . . . . . Terrain Destroyed 127 | . . . . 50 77 Melee . | . . . . . . Projectile . | . . . . . . AOE 127 | . . . . 50 77 Terrain Rammed . | . . . . . . Walls Destroyed . | . . . . . . Machines Disabled . | . . . . . . Actions | -11 -10 -9 -9 -8 -8 --------- Run | Yrd Mat Mat Min Mat Sto Total 1617 | 1 405 439 229 163 380 Wait 221 | . 8 113 62 . 38 Move 1184 | 1 337 287 165 134 260 Hop . | . . . . . . Pick Up 5 | . 4 1 . . . Fast Attach 19 | . 4 3 . 3 9 Attach 4 | . . 2 . . 2 Detach . | . . . . . . Swap 10 | . 1 1 1 2 5 Drop 12 | . 5 2 . . 5 Fire 151 | . 42 27 . 24 58 Melee . | . . . . . . Ram 1 | . . . . . 1 Kick 9 | . 4 3 1 . 1 Crush 1 | . . . . . 1 Escape Stasis . | . . . . . . Rewire . | . . . . . . Trap . | . . . . . . Miscellaneous . | . . . . . . Route ------- -11/Scrapyard -10/Materials -9/Materials -9/Mines -8/Materials -8/Storage History --------- Turn | Location | Event 1 | -11/Scrapyard | Discovered new exit (range 1) 3 | -11/Scrapyard | Entered Materials 314 | -10/Materials | Discovered new exit (range 5) 320 | -10/Materials | Build established: Mutant 554 | -10/Materials | Entered another Materials area 554 | -9/Materials | Evolved 2 slots: Utility x2 856 | -9/Materials | Destroyed 9 combat bots 993 | -9/Materials | Destroyed 7 combat bots 1011 | -9/Materials | Discovered new exit (range 10) 1105 | -9/Materials | Identified exit to Mines 1106 | -9/Materials | Entered Mines 1107 | -9/Mines | Assembled infested the area 1112 | -9/Mines | Assisted by a Guerilla fighting off Assembled 1268 | -9/Mines | Learned location of Zion (-7) 1352 | -9/Mines | Discovered new exit (range 10) 1368 | -9/Mines | Identified exit to Materials 1369 | -9/Mines | Entered Materials 1369 | -8/Materials | Accompanied by 1 ally 1369 | -8/Materials | Evolved 2 slots: Utility x2 1374 | -8/Materials | Led the pair of lost Derelicts to an unsafe place 1617 | -8/Materials | Discovered new exit (range 8) 1655 | -8/Materials | Identified exit to Storage 1657 | -8/Materials | Entered Storage 1779 | -8/Storage | Lost 4 parts (2n2u) 2149 | -8/Storage | Core integrity fell below 50% 2166 | -8/Storage | Core integrity fell below 20% 2180 | -8/Storage | Lost 3 parts (1n2w) 2215 | -8/Storage | Destroyed by G-47 Trooper with Particle Gun Last Messages --------------- 02146_ Critical hit (Burn: +37). 02148_ K-01 Serf cleans the Terminal. 02149_ Mni. Grenade Launcher destroyed. 02153_ Dropped Sml. Storage Unit. 02153_ Dropped Cold Fusion Reactor. 02154_ Dropped Lgt. Treads. 02157_ Critical hit (Burn: +37). 02157_ A-02 Transporter destroyed. 02159_ Critical hit (Burn: +37). 02159_ Acquired Prototype Ballistic Gun. 02159_ Identified Enh. Autogun. 02159_ Faulty integration triggers system corruption (+3). 02159_ Terminal disabled. 02161_ Acquired Enh. Autogun. 02163_ Dropped Faulty Enh. Autogun. 02165_ Critical hit (Burn: +37). 02167_ Slammed into A-02 Transporter. 02191_ Critical hit (Burn: +37). 02203_ System corrupted: Matter fused (-8). Map ----- +----------------------------------------------------+ | ???#" T# "??"" ## #???????????? | | ???### # ### ## "????" ## #???????????? | | ???????##???# ## "????? ## #???????????? | | ????????????# ## ""??? ## % ##??????????? | | ????????????# ## "??? ## #/##??????????? | | ???????????## ## ????## + ???????????? | | ???????????# ####+####### %## ??????# ### | | ???????????# % # """?????# | | ???????????# ## "???????+ | | ???????????# "" ## "???????# | | ???????????# ####### "Y "# "???????##### | | ???????????#######????## *"" T# ?????????# | | ??????????????????????#"[!= "#??????????# | | ??????????????????????#T ####????????# | | ??????????????????????#" """ ?????+ | | ??????????????????????## """ #####+??????# | | ?????????????????#####?# !""" #??????????## | | ?????????????????# ?# =[[ #???????????#### | | ?????????????????# """ # [%[ #??????????????? | | ?????????????????# """ # [%! #??????????????? | | ?????????????????# """ + !! #??????????#???? | | ?????????????????# """ # ## T"#####?????????????#? | | ?????????????????# """ # #?"""#??????????????????# | | ?????????????????# ?#Y#?####??????????????????? | | ?????????????????#######g###?????????????????????? | | ?????????????????# @ #?????????????????????? | | ?????????????????# """" #?????????????????????? | | ??????????????????????"" #?????????????????????? | | ???????????????????????"" #?????????????????????? | | ????????????????????????" #?????????????????????? | | ????????????????????????" #?????????????????????? | | ?????????????????# """" #?????????????????????? | | ?????????????????# #?????????????????????? | | ?????????????????###########?????????????????????? | | ?????????????????????????????????????????????????? | | ?????????????????????????????????????????????????? | | ?????????????????????????????????????????????????? | | ?????????????????????????????????????????????????? | | ?????????????????????????????????????????????????? | | ?????????????????????????????????????????????????? | | ?????????????????????????????????????????????????? | | ?????????????????????????????????????????????????? | | ?????????????????????????????????????????????????? | | ?????????????????????????????????????????????????? | | ?????????????????????????????????????????????????? | | ?????????????????????????????????????????????????? | | ?????????????????????????????????????????????????? | | ?????????????????????????????????????????????????? | | ?????????????????????????????????????????????????? | | ?????????????????????????????????????????????????? | +----------------------------------------------------+ Best States ------------- Heat Dissipation 31 Energy Generation 18 Energy Capacity 250 Matter Stores 300 Matter Capacity 300 Sight Range 16 Robot Scan Range 15 Terrain Scan Range 14 Terrain Scan Density 110 Armor Coverage 300 Resistance: KI 20 Resistance: TH 20 Resistance: EX 20 Resistance: EM 20 Resistance: I 20 Resistance: S 20 Resistance: P 20 Evasion (%) 55 Targeting Accuracy 5 Recoil Reduction 2 Offensive Hacking 20 Item Schematics ----------------- None Robot Schematics ------------------ None Fabricated ------------ Nothing Alien Tech Used ----------------- None Achievements -------------- None Challenges ------------ None Game ------ Seed PrecisionBeamVibroblade Manual? 0 Play Time 00:19:15 Cumulative 53.5 hours Start 2024.05.26 @ 20:50:03 End 2024.05.26 @ 21:07:39 Sessions 1 Manual Loads 0 Difficulty Adventurer Special Mode None Game No. 70 Rogue 0 Adventurer 65 Explorer 5 Win Type - Total 1 Types 1/0/0/0/0/0/0/0/0 Lore% 30 Gallery% 45 Achievement% 34 Wizard Run 0 Options --------- Layout 1 ASCII 0 Keyboard 0 Movement Arrows Keybinds 0 Fullscreen 2 Font 24/Terminus Map View 50x35 Zoom Use 0% Tactical HUD 1 Map Filters NONE Filters NONE Steam 1 RUN: de499aa0-b070-4a24-9a1e-729385288fd7